[Event "Titled Tuesday Blitz October 11 Late 2022"]
[White "Owen, Michael"]
[Black "Sai Krishna G V"]
[WhiteFideId "7104820"]
[BlackFideId "5028280"]
[WhiteElo "1943"]
[BlackElo "2359"]
[Result "0-1"]
[Round "02"]
[TimeControl "180+1"]
[Date "2022.10.12"]
[WhiteClock "0:00:06"]
[BlackClock "0:01:13"]

1. e4 {[%clk 0:03:00]}  g6 {[%clk 0:03:00]} 2. d4 {[%clk 0:03:00]}  Bg7 {[%clk 0:02:59]} 3. Nc3 {[%clk 0:03:00]}  c5 {[%clk 0:03:00]} 4. Be3 {[%clk 0:02:58]}  Nc6 {[%clk 0:02:59]} 5. Nge2 {[%clk 0:02:50]}  Nf6 {[%clk 0:02:38]} 6. f3 {[%clk 0:02:49]}  cxd4 {[%clk 0:02:29]} 7. Nxd4 {[%clk 0:02:48]}  O-O {[%clk 0:02:27]} 8. Bc4 {[%clk 0:02:48]}  Na5 {[%clk 0:02:18]} 9. Bb3 {[%clk 0:02:32]}  Nxb3 {[%clk 0:02:17]} 10. axb3 {[%clk 0:02:32]}  d5 {[%clk 0:02:17]} 11. e5 {[%clk 0:02:27]}  Ne8 {[%clk 0:02:12]} 12. f4 {[%clk 0:02:17]}  f6 {[%clk 0:02:10]} 13. Nf3 {[%clk 0:01:57]}  fxe5 {[%clk 0:02:05]} 14. fxe5 {[%clk 0:00:59]}  Nc7 {[%clk 0:02:04]} 15. h3 {[%clk 0:00:55]}  Rxf3 {[%clk 0:01:54]} 16. Qxf3 {[%clk 0:00:54]}  Bxe5 {[%clk 0:01:52]} 17. O-O {[%clk 0:00:25]}  Bf5 {[%clk 0:01:51]} 18. g4 {[%clk 0:00:22]}  Bxc2 {[%clk 0:01:49]} 19. Qf7+ {[%clk 0:00:21]}  Kh8 {[%clk 0:01:49]} 20. Rf2 {[%clk 0:00:13]}  Bxb3 {[%clk 0:01:44]} 21. Raf1 {[%clk 0:00:12]}  d4 {[%clk 0:01:39]} 22. Qxb3 {[%clk 0:00:11]}  dxe3 {[%clk 0:01:38]} 23. Rf8+ {[%clk 0:00:09]}  Qxf8 {[%clk 0:01:38]} 24. Rxf8+ {[%clk 0:00:10]}  Rxf8 {[%clk 0:01:38]} 25. Qxb7 {[%clk 0:00:10]}  Bxc3 {[%clk 0:01:36]} 26. Qxc7 {[%clk 0:00:05]}  Bd4 {[%clk 0:01:27]} 27. Qxe7 {[%clk 0:00:03]}  Kg8 {[%clk 0:01:20]} 28. Kg2 {[%clk 0:00:02]}  Bb6 {[%clk 0:01:18]} 29. b4 {[%clk 0:00:02]}  Rf2+ {[%clk 0:01:14]} 30. Kg3 {[%clk 0:00:02]}  e2 {[%clk 0:01:14]} 31. Qe6+ {[%clk 0:00:02]}  Kf8 {[%clk 0:01:14]} 32. Qd6+ {[%clk 0:00:02]}  Ke8 {[%clk 0:01:12]} 33. Qe6+ {[%clk 0:00:02]}  Kd8 {[%clk 0:01:12]} 34. Qd6+ {[%clk 0:00:03]}  Kc8 {[%clk 0:01:12]} 35. Qc6+ {[%clk 0:00:02]}  Kb8 {[%clk 0:01:12]} 36. Qe8+ {[%clk 0:00:03]}  Kc7 {[%clk 0:01:10]} 37. Qe7+ {[%clk 0:00:03]}  Kc6 {[%clk 0:01:10]} 38. Qe8+ {[%clk 0:00:03]}  Kd5 {[%clk 0:01:09]} 39. Qd7+ {[%clk 0:00:03]}  Kc4 {[%clk 0:01:09]} 40. Qe6+ {[%clk 0:00:02]}  Kxb4 {[%clk 0:01:09]} 41. Qxb6+ {[%clk 0:00:01]}  axb6 {[%clk 0:01:09]} 42. Kxf2 {[%clk 0:00:02]}  Kc3 {[%clk 0:01:09]} 43. Kxe2 {[%clk 0:00:02]}  b5 {[%clk 0:01:10]} 44. h4 {[%clk 0:00:02]}  Kd4 {[%clk 0:01:10]} 45. g5 {[%clk 0:00:01]}  Ke5 {[%clk 0:01:10]} 46. Kd3 {[%clk 0:00:02]}  Kf5 {[%clk 0:01:10]} 47. Kc3 {[%clk 0:00:02]}  Kg4 {[%clk 0:01:10]} 48. Kb4 {[%clk 0:00:03]}  Kxh4 {[%clk 0:01:11]} 49. Kxb5 {[%clk 0:00:04]}  Kxg5 {[%clk 0:01:11]} 50. Kc4 {[%clk 0:00:05]}  Kf4 {[%clk 0:01:12]} 51. Kd3 {[%clk 0:00:06]}  Kf3 {[%clk 0:01:13]} 52. Kd2 {[%clk 0:00:06]}  Kf2 {[%clk 0:01:13]} 0-1


[Site "https://www.chess.com"]

[Event "Titled Tuesday Blitz October 11 Late 2022"]
[White "Ozates, Tuna"]
[Black "Makarian, Rudik"]
[WhiteFideId "6354521"]
[BlackFideId "44105681"]
[WhiteElo "2151"]
[BlackElo "2405"]
[Result "0-1"]
[Round "02"]
[TimeControl "180+1"]
[Date "2022.10.12"]
[WhiteClock "0:00:17"]
[BlackClock "0:00:20"]

1. e4 {[%clk 0:03:00]}  c5 {[%clk 0:02:59]} 2. Nc3 {[%clk 0:03:00]}  e6 {[%clk 0:02:58]} 3. g3 {[%clk 0:02:59]}  Nc6 {[%clk 0:02:55]} 4. Bg2 {[%clk 0:02:59]}  g6 {[%clk 0:02:53]} 5. d3 {[%clk 0:02:57]}  Bg7 {[%clk 0:02:52]} 6. Be3 {[%clk 0:02:58]}  d6 {[%clk 0:02:52]} 7. Qd2 {[%clk 0:02:58]}  h5 {[%clk 0:02:51]} 8. f4 {[%clk 0:02:49]}  Nd4 {[%clk 0:02:44]} 9. Nd1 {[%clk 0:02:45]}  Ne7 {[%clk 0:02:38]} 10. c3 {[%clk 0:02:45]}  Ndc6 {[%clk 0:02:38]} 11. Nf3 {[%clk 0:02:46]}  b6 {[%clk 0:02:34]} 12. Nf2 {[%clk 0:02:44]}  Bb7 {[%clk 0:02:33]} 13. O-O {[%clk 0:02:28]}  Qd7 {[%clk 0:02:23]} 14. d4 {[%clk 0:02:27]}  cxd4 {[%clk 0:02:21]} 15. Nxd4 {[%clk 0:02:24]}  O-O {[%clk 0:02:19]} 16. Rad1 {[%clk 0:02:14]}  Rfd8 {[%clk 0:02:19]} 17. Nh3 {[%clk 0:02:08]}  d5 {[%clk 0:01:41]} 18. f5 {[%clk 0:01:56]}  Nxd4 {[%clk 0:01:32]} 19. Bxd4 {[%clk 0:01:33]}  exf5 {[%clk 0:01:30]} 20. Bxg7 {[%clk 0:01:28]}  Kxg7 {[%clk 0:01:31]} 21. exd5 {[%clk 0:01:24]}  Nxd5 {[%clk 0:00:55]} 22. c4 {[%clk 0:01:19]}  Nf6 {[%clk 0:00:55]} 23. Qxd7 {[%clk 0:00:49]}  Rxd7 {[%clk 0:00:56]} 24. Rxd7 {[%clk 0:00:49]}  Bxg2 {[%clk 0:00:56]} 25. Rxf7+ {[%clk 0:00:29]}  Kxf7 {[%clk 0:00:57]} 26. Ng5+ {[%clk 0:00:27]}  Kg7 {[%clk 0:00:49]} 27. Kxg2 {[%clk 0:00:28]}  Ng4 {[%clk 0:00:35]} 28. Re1 {[%clk 0:00:24]}  Rc8 {[%clk 0:00:29]} 29. b3 {[%clk 0:00:22]}  b5 {[%clk 0:00:26]} 30. h4 {[%clk 0:00:17]}  bxc4 {[%clk 0:00:23]} 31. bxc4 {[%clk 0:00:17]}  Rxc4 {[%clk 0:00:22]} 32. Re7+ {[%clk 0:00:18]}  Kf8 {[%clk 0:00:20]} 33. Rxa7 {[%clk 0:00:18]}  Rc2+ {[%clk 0:00:20]} 34. Kf3 {[%clk 0:00:17]}  Rf2# {[%clk 0:00:20]} 0-1


[Site "https://www.chess.com"]

[Event "Titled Tuesday Blitz October 11 Late 2022"]
[White "Pert, Richard G"]
[Black "miragha_yev"]
[WhiteFideId "404748"]
[WhiteElo "2441"]
[BlackElo "2785"]
[Result "0-1"]
[Round "02"]
[TimeControl "180+1"]
[Date "2022.10.12"]
[WhiteClock "0:00:08"]
[BlackClock "0:01:23"]

1. e4 {[%clk 0:03:00]}  d6 {[%clk 0:02:59]} 2. d4 {[%clk 0:03:00]}  Nf6 {[%clk 0:02:57]} 3. Nc3 {[%clk 0:03:00]}  e5 {[%clk 0:02:57]} 4. Nf3 {[%clk 0:02:57]}  exd4 {[%clk 0:02:57]} 5. Nxd4 {[%clk 0:02:57]}  Be7 {[%clk 0:02:58]} 6. g3 {[%clk 0:02:49]}  O-O {[%clk 0:02:58]} 7. Bg2 {[%clk 0:02:49]}  c6 {[%clk 0:02:58]} 8. O-O {[%clk 0:02:48]}  Re8 {[%clk 0:02:58]} 9. Re1 {[%clk 0:02:48]}  Bf8 {[%clk 0:02:58]} 10. h3 {[%clk 0:02:46]}  a5 {[%clk 0:02:56]} 11. a4 {[%clk 0:02:45]}  Na6 {[%clk 0:02:56]} 12. b3 {[%clk 0:02:44]}  Nc5 {[%clk 0:02:52]} 13. Bb2 {[%clk 0:02:41]}  Qc7 {[%clk 0:02:51]} 14. Qd2 {[%clk 0:02:39]}  Be6 {[%clk 0:02:50]} 15. Rad1 {[%clk 0:02:34]}  Rad8 {[%clk 0:02:49]} 16. Nxe6 {[%clk 0:02:30]}  Nxe6 {[%clk 0:02:50]} 17. f4 {[%clk 0:02:25]}  Nc5 {[%clk 0:02:49]} 18. Kh2 {[%clk 0:02:24]}  Nfd7 {[%clk 0:02:46]} 19. h4 {[%clk 0:02:18]}  Nf6 {[%clk 0:02:45]} 20. Bf3 {[%clk 0:02:17]}  h5 {[%clk 0:02:45]} 21. f5 {[%clk 0:02:10]}  Ncd7 {[%clk 0:02:42]} 22. Ne2 {[%clk 0:02:00]}  Ne5 {[%clk 0:02:42]} 23. Bxe5 {[%clk 0:01:59]}  dxe5 {[%clk 0:02:43]} 24. Qg5 {[%clk 0:01:52]}  Rxd1 {[%clk 0:02:42]} 25. Rxd1 {[%clk 0:01:52]}  Rd8 {[%clk 0:02:42]} 26. Rxd8 {[%clk 0:01:39]}  Qxd8 {[%clk 0:02:43]} 27. Bxh5 {[%clk 0:01:39]}  Qd1 {[%clk 0:02:38]} 28. Bf3 {[%clk 0:01:31]}  Qxc2 {[%clk 0:02:35]} 29. h5 {[%clk 0:01:19]}  Nxe4 {[%clk 0:02:32]} 30. Bxe4 {[%clk 0:01:13]}  Qxe4 {[%clk 0:02:30]} 31. Ng1 {[%clk 0:01:11]}  Qc2+ {[%clk 0:02:07]} 32. Kh3 {[%clk 0:01:09]}  Qd1 {[%clk 0:02:07]} 33. Kh2 {[%clk 0:01:04]}  Bc5 {[%clk 0:02:06]} 34. Nh3 {[%clk 0:00:58]}  Qe2+ {[%clk 0:02:05]} 35. Kh1 {[%clk 0:00:57]}  Qf3+ {[%clk 0:02:02]} 36. Kh2 {[%clk 0:00:57]}  Be3 {[%clk 0:01:50]} 37. Qd8+ {[%clk 0:00:53]}  Kh7 {[%clk 0:01:50]} 38. Ng5+ {[%clk 0:00:47]}  Bxg5 {[%clk 0:01:50]} 39. Qxg5 {[%clk 0:00:48]}  Qxb3 {[%clk 0:01:43]} 40. h6 {[%clk 0:00:42]}  gxh6 {[%clk 0:01:39]} 41. Qe7 {[%clk 0:00:25]}  Qc2+ {[%clk 0:01:37]} 42. Kg1 {[%clk 0:00:25]}  Qxf5 {[%clk 0:01:38]} 43. Qxb7 {[%clk 0:00:25]}  e4 {[%clk 0:01:31]} 44. Qxc6 {[%clk 0:00:24]}  e3 {[%clk 0:01:32]} 45. Qe8 {[%clk 0:00:10]}  Qf2+ {[%clk 0:01:30]} 46. Kh1 {[%clk 0:00:10]}  Qf3+ {[%clk 0:01:29]} 47. Kh2 {[%clk 0:00:10]}  e2 {[%clk 0:01:30]} 48. g4 {[%clk 0:00:08]}  Qf2+ {[%clk 0:01:28]} 49. Kh3 {[%clk 0:00:08]}  e1=Q {[%clk 0:01:23]} 0-1


[Site "https://www.chess.com"]

[Event "Titled Tuesday Blitz October 11 Late 2022"]
[White "Poltorak, Sebastian"]
[Black "Sibilio, Mario"]
[WhiteFideId "1199498"]
[BlackFideId "800422"]
[WhiteElo "2232"]
[BlackElo "2296"]
[Result "1-0"]
[Round "02"]
[TimeControl "180+1"]
[Date "2022.10.12"]
[WhiteClock "0:00:23"]
[BlackClock "0:00:01"]

1. d4 {[%clk 0:03:00]}  Nf6 {[%clk 0:02:58]} 2. c4 {[%clk 0:03:01]}  e6 {[%clk 0:02:58]} 3. Nc3 {[%clk 0:03:01]}  Bb4 {[%clk 0:02:57]} 4. Qc2 {[%clk 0:03:00]}  O-O {[%clk 0:02:56]} 5. e4 {[%clk 0:02:59]}  d5 {[%clk 0:02:55]} 6. e5 {[%clk 0:02:59]}  Ne4 {[%clk 0:02:54]} 7. Bd3 {[%clk 0:02:59]}  c5 {[%clk 0:02:53]} 8. Nf3 {[%clk 0:02:58]}  Nc6 {[%clk 0:02:52]} 9. O-O {[%clk 0:02:50]}  Bxc3 {[%clk 0:02:51]} 10. bxc3 {[%clk 0:02:49]}  cxd4 {[%clk 0:02:51]} 11. cxd4 {[%clk 0:02:49]}  Nb4 {[%clk 0:02:50]} 12. Qb1 {[%clk 0:02:48]}  Nxd3 {[%clk 0:02:50]} 13. Qxd3 {[%clk 0:02:49]}  b6 {[%clk 0:02:49]} 14. Ba3 {[%clk 0:02:49]}  Ba6 {[%clk 0:02:39]} 15. Rfc1 {[%clk 0:02:30]}  Re8 {[%clk 0:02:35]} 16. Qe3 {[%clk 0:02:27]}  f5 {[%clk 0:02:20]} 17. exf6 {[%clk 0:02:26]}  Qxf6 {[%clk 0:02:14]} 18. Ne5 {[%clk 0:02:26]}  Rac8 {[%clk 0:02:08]} 19. f3 {[%clk 0:02:22]}  Ng5 {[%clk 0:02:07]} 20. cxd5 {[%clk 0:02:22]}  exd5 {[%clk 0:02:01]} 21. Rxc8 {[%clk 0:02:21]}  Rxc8 {[%clk 0:01:54]} 22. Rc1 {[%clk 0:02:21]}  Nf7 {[%clk 0:01:46]} 23. Rxc8+ {[%clk 0:02:07]}  Bxc8 {[%clk 0:01:45]} 24. Ng4 {[%clk 0:02:07]}  Qd8 {[%clk 0:01:42]} 25. Ne5 {[%clk 0:02:06]}  Nxe5 {[%clk 0:01:35]} 26. dxe5 {[%clk 0:02:07]}  Qd7 {[%clk 0:01:34]} 27. Qd4 {[%clk 0:02:04]}  h5 {[%clk 0:01:27]} 28. h3 {[%clk 0:01:58]}  Qf7 {[%clk 0:01:15]} 29. Bb2 {[%clk 0:01:54]}  Be6 {[%clk 0:01:13]} 30. Kf2 {[%clk 0:01:50]}  Qg6 {[%clk 0:01:12]} 31. g4 {[%clk 0:01:50]}  hxg4 {[%clk 0:01:01]} 32. hxg4 {[%clk 0:01:51]}  Qc2+ {[%clk 0:00:51]} 33. Kg3 {[%clk 0:01:51]}  Qc5 {[%clk 0:00:49]} 34. Qd1 {[%clk 0:01:40]}  Qe3 {[%clk 0:00:39]} 35. Bd4 {[%clk 0:01:39]}  Qa3 {[%clk 0:00:35]} 36. Qc2 {[%clk 0:01:36]}  Qb4 {[%clk 0:00:30]} 37. Qc6 {[%clk 0:01:26]}  Qe1+ {[%clk 0:00:28]} 38. Kg2 {[%clk 0:01:21]}  Qe2+ {[%clk 0:00:27]} 39. Kg3 {[%clk 0:01:12]}  Qe1+ {[%clk 0:00:26]} 40. Kf4 {[%clk 0:01:05]}  Kf7 {[%clk 0:00:17]} 41. Qc7+ {[%clk 0:00:36]}  Kg6 {[%clk 0:00:16]} 42. Qc3 {[%clk 0:00:36]}  Qxc3 {[%clk 0:00:13]} 43. Bxc3 {[%clk 0:00:37]}  Kf7 {[%clk 0:00:12]} 44. Bd4 {[%clk 0:00:36]}  Kg6 {[%clk 0:00:11]} 45. Bc3 {[%clk 0:00:35]}  a5 {[%clk 0:00:09]} 46. Bd4 {[%clk 0:00:33]}  b5 {[%clk 0:00:09]} 47. Bb6 {[%clk 0:00:33]}  d4 {[%clk 0:00:06]} 48. Bxa5 {[%clk 0:00:30]}  Bxa2 {[%clk 0:00:05]} 49. Ke4 {[%clk 0:00:30]}  d3 {[%clk 0:00:02]} 50. Kxd3 {[%clk 0:00:27]}  Kf7 {[%clk 0:00:01]} 51. f4 {[%clk 0:00:26]}  g6 {[%clk 0:00:01]} 52. Kd4 {[%clk 0:00:23]} 1-0


[Site "https://www.chess.com"]

[Event "Titled Tuesday Blitz October 11 Late 2022"]
[White "Predke, Alexandr"]
[Black "Diaz Rosas, Julio Cesar"]
[WhiteFideId "24107581"]
[BlackFideId "5105099"]
[WhiteElo "2614"]
[BlackElo "2246"]
[Result "1-0"]
[Round "02"]
[TimeControl "180+1"]
[Date "2022.10.12"]
[WhiteClock "0:00:02"]
[BlackClock "0:00:01"]

1. Nf3 {[%clk 0:03:00]}  Nf6 {[%clk 0:02:56]} 2. c4 {[%clk 0:02:59]}  g6 {[%clk 0:02:53]} 3. Nc3 {[%clk 0:02:59]}  Bg7 {[%clk 0:02:51]} 4. e4 {[%clk 0:02:59]}  e5 {[%clk 0:02:52]} 5. Nxe5 {[%clk 0:02:58]}  O-O {[%clk 0:02:46]} 6. d3 {[%clk 0:02:57]}  Re8 {[%clk 0:02:41]} 7. f4 {[%clk 0:02:57]}  c6 {[%clk 0:02:22]} 8. Be2 {[%clk 0:02:48]}  d5 {[%clk 0:02:15]} 9. cxd5 {[%clk 0:02:48]}  cxd5 {[%clk 0:02:15]} 10. O-O {[%clk 0:02:48]}  Be6 {[%clk 0:01:50]} 11. f5 {[%clk 0:02:33]}  Bc8 {[%clk 0:01:42]} 12. Ng4 {[%clk 0:02:08]}  dxe4 {[%clk 0:01:34]} 13. dxe4 {[%clk 0:02:06]}  Qxd1 {[%clk 0:00:57]} 14. Nxf6+ {[%clk 0:02:03]}  Bxf6 {[%clk 0:00:56]} 15. Rxd1 {[%clk 0:02:02]}  Bxc3 {[%clk 0:00:54]} 16. bxc3 {[%clk 0:02:01]}  Nc6 {[%clk 0:00:51]} 17. Bd3 {[%clk 0:01:50]}  b6 {[%clk 0:00:44]} 18. Bc4 {[%clk 0:01:18]}  Ne5 {[%clk 0:00:20]} 19. Bd5 {[%clk 0:01:16]}  Rb8 {[%clk 0:00:20]} 20. fxg6 {[%clk 0:01:06]}  hxg6 {[%clk 0:00:21]} 21. Bf4 {[%clk 0:01:06]}  Bg4 {[%clk 0:00:20]} 22. Rf1 {[%clk 0:01:05]}  Rbc8 {[%clk 0:00:09]} 23. Bxe5 {[%clk 0:00:42]}  Rxe5 {[%clk 0:00:10]} 24. Bxf7+ {[%clk 0:00:42]}  Kg7 {[%clk 0:00:10]} 25. Bd5 {[%clk 0:00:42]}  Kh6 {[%clk 0:00:09]} 26. Rac1 {[%clk 0:00:39]}  Rc5 {[%clk 0:00:08]} 27. c4 {[%clk 0:00:37]}  Be6 {[%clk 0:00:07]} 28. Rfd1 {[%clk 0:00:19]}  b5 {[%clk 0:00:07]} 29. cxb5 {[%clk 0:00:17]}  Rxb5 {[%clk 0:00:08]} 30. Bxe6 {[%clk 0:00:14]}  Rxe6 {[%clk 0:00:09]} 31. Re1 {[%clk 0:00:12]}  Rb2 {[%clk 0:00:09]} 32. Ra1 {[%clk 0:00:07]}  Rd6 {[%clk 0:00:09]} 33. Kh1 {[%clk 0:00:05]}  Rdd2 {[%clk 0:00:09]} 34. Rg1 {[%clk 0:00:05]}  Re2 {[%clk 0:00:09]} 35. Rae1 {[%clk 0:00:05]}  Rxa2 {[%clk 0:00:09]} 36. e5 {[%clk 0:00:04]}  Kg7 {[%clk 0:00:08]} 37. h3 {[%clk 0:00:03]}  Kf7 {[%clk 0:00:08]} 38. Rxe2 {[%clk 0:00:04]}  Rxe2 {[%clk 0:00:08]} 39. Ra1 {[%clk 0:00:05]}  Rxe5 {[%clk 0:00:08]} 40. Rxa7+ {[%clk 0:00:06]}  Kf6 {[%clk 0:00:08]} 41. Kh2 {[%clk 0:00:06]}  Kg5 {[%clk 0:00:08]} 42. Ra4 {[%clk 0:00:06]}  Kh6 {[%clk 0:00:08]} 43. Kg3 {[%clk 0:00:05]}  Rg5+ {[%clk 0:00:08]} 44. Kf3 {[%clk 0:00:06]}  Rb5 {[%clk 0:00:09]} 45. Rf4 {[%clk 0:00:06]}  Kg5 {[%clk 0:00:08]} 46. h4+ {[%clk 0:00:06]}  Kh5 {[%clk 0:00:08]} 47. Re4 {[%clk 0:00:05]}  Rb3+ {[%clk 0:00:08]} 48. Kf2 {[%clk 0:00:05]}  Kh6 {[%clk 0:00:07]} 49. g4 {[%clk 0:00:04]}  Ra3 {[%clk 0:00:07]} 50. Kg2 {[%clk 0:00:05]}  Rb3 {[%clk 0:00:07]} 51. Rf4 {[%clk 0:00:05]}  Rb2+ {[%clk 0:00:07]} 52. Kg3 {[%clk 0:00:05]}  Rb3+ {[%clk 0:00:07]} 53. Rf3 {[%clk 0:00:06]}  Rb4 {[%clk 0:00:07]} 54. Rd3 {[%clk 0:00:06]}  Ra4 {[%clk 0:00:07]} 55. Re3 {[%clk 0:00:06]}  Rb4 {[%clk 0:00:08]} 56. Re6 {[%clk 0:00:07]}  Kg7 {[%clk 0:00:07]} 57. g5 {[%clk 0:00:06]}  Ra4 {[%clk 0:00:07]} 58. Re7+ {[%clk 0:00:06]}  Kg8 {[%clk 0:00:07]} 59. Rd7 {[%clk 0:00:06]}  Rb4 {[%clk 0:00:07]} 60. Rd3 {[%clk 0:00:06]}  Kg7 {[%clk 0:00:07]} 61. Rf3 {[%clk 0:00:06]}  Rc4 {[%clk 0:00:07]} 62. Rf4 {[%clk 0:00:07]}  Rc3+ {[%clk 0:00:07]} 63. Kg4 {[%clk 0:00:07]}  Rc5 {[%clk 0:00:08]} 64. Rd4 {[%clk 0:00:07]}  Rc7 {[%clk 0:00:07]} 65. Kf4 {[%clk 0:00:08]}  Rf7+ {[%clk 0:00:07]} 66. Ke5 {[%clk 0:00:08]}  Re7+ {[%clk 0:00:07]} 67. Kd6 {[%clk 0:00:09]}  Re1 {[%clk 0:00:07]} 68. Rf4 {[%clk 0:00:09]}  Rd1+ {[%clk 0:00:07]} 69. Ke5 {[%clk 0:00:09]}  Re1+ {[%clk 0:00:07]} 70. Re4 {[%clk 0:00:08]}  Rf1 {[%clk 0:00:08]} 71. Ke6 {[%clk 0:00:08]}  Rf2 {[%clk 0:00:07]} 72. Kd6 {[%clk 0:00:06]}  Rd2+ {[%clk 0:00:07]} 73. Ke7 {[%clk 0:00:06]}  Ra2 {[%clk 0:00:07]} 74. Rd4 {[%clk 0:00:06]}  Re2+ {[%clk 0:00:07]} 75. Kd8 {[%clk 0:00:06]}  Kf7 {[%clk 0:00:05]} 76. Rd7+ {[%clk 0:00:06]}  Kf8 {[%clk 0:00:05]} 77. Rd6 {[%clk 0:00:03]}  Kf7 {[%clk 0:00:05]} 78. Rf6+ {[%clk 0:00:03]}  Kg7 {[%clk 0:00:05]} 79. Rf4 {[%clk 0:00:04]}  Rd2+ {[%clk 0:00:05]} 80. Ke7 {[%clk 0:00:04]}  Re2+ {[%clk 0:00:06]} 81. Kd6 {[%clk 0:00:05]}  Rd2+ {[%clk 0:00:06]} 82. Ke5 {[%clk 0:00:05]}  Re2+ {[%clk 0:00:07]} 83. Re4 {[%clk 0:00:06]}  Ra2 {[%clk 0:00:07]} 84. Rd4 {[%clk 0:00:06]}  Re2+ {[%clk 0:00:07]} 85. Kd6 {[%clk 0:00:07]}  Kf7 {[%clk 0:00:07]} 86. Rf4+ {[%clk 0:00:06]}  Kg7 {[%clk 0:00:07]} 87. Rc4 {[%clk 0:00:06]}  Rd2+ {[%clk 0:00:08]} 88. Ke5 {[%clk 0:00:06]}  Re2+ {[%clk 0:00:08]} 89. Kd5 {[%clk 0:00:06]}  Rd2+ {[%clk 0:00:08]} 90. Ke4 {[%clk 0:00:07]}  Re2+ {[%clk 0:00:08]} 91. Kf4 {[%clk 0:00:06]}  Rf2+ {[%clk 0:00:08]} 92. Ke3 {[%clk 0:00:07]}  Rf7 {[%clk 0:00:08]} 93. Rc6 {[%clk 0:00:05]}  Re7+ {[%clk 0:00:08]} 94. Kf4 {[%clk 0:00:06]}  Kf7 {[%clk 0:00:07]} 95. Rd6 {[%clk 0:00:04]}  Kg7 {[%clk 0:00:07]} 96. Rc6 {[%clk 0:00:04]}  Ra7 {[%clk 0:00:07]} 97. Ke5 {[%clk 0:00:04]}  Re7+ {[%clk 0:00:07]} 98. Re6 {[%clk 0:00:04]}  Ra7 {[%clk 0:00:07]} 99. Rc6 {[%clk 0:00:03]}  Re7+ {[%clk 0:00:06]} 100. Kd5 {[%clk 0:00:03]}  Rd7+ {[%clk 0:00:06]} 101. Ke6 {[%clk 0:00:04]}  Ra7 {[%clk 0:00:05]} 102. Rd6 {[%clk 0:00:04]}  Ra4 {[%clk 0:00:05]} 103. Rd7+ {[%clk 0:00:04]}  Kg8 {[%clk 0:00:03]} 104. Kf6 {[%clk 0:00:04]}  Rxh4 {[%clk 0:00:03]} 105. Kxg6 {[%clk 0:00:03]}  Kf8 {[%clk 0:00:02]} 106. Rd8+ {[%clk 0:00:03]}  Ke7 {[%clk 0:00:03]} 107. Ra8 {[%clk 0:00:02]}  Rg4 {[%clk 0:00:01]} 108. Rg8 {[%clk 0:00:02]} 1-0


[Site "https://www.chess.com"]

[Event "Titled Tuesday Blitz October 11 Late 2022"]
[White "Reshetnikov, Alexey"]
[Black "Milosevic, Milos"]
[WhiteFideId "4162080"]
[BlackFideId "964875"]
[WhiteElo "2502"]
[BlackElo "2321"]
[Result "1-0"]
[Round "02"]
[TimeControl "180+1"]
[Date "2022.10.12"]
[WhiteClock "0:01:32"]
[BlackClock "0:00:19"]

1. e4 {[%clk 0:03:00]}  e5 {[%clk 0:02:58]} 2. Nf3 {[%clk 0:03:01]}  Nc6 {[%clk 0:02:59]} 3. Bc4 {[%clk 0:03:01]}  Bc5 {[%clk 0:02:59]} 4. c3 {[%clk 0:03:01]}  Nf6 {[%clk 0:02:59]} 5. d3 {[%clk 0:03:02]}  d6 {[%clk 0:02:59]} 6. O-O {[%clk 0:03:02]}  a6 {[%clk 0:02:59]} 7. Bb3 {[%clk 0:03:02]}  Ba7 {[%clk 0:02:58]} 8. Nbd2 {[%clk 0:03:03]}  h6 {[%clk 0:02:58]} 9. Re1 {[%clk 0:03:00]}  O-O {[%clk 0:02:57]} 10. Nf1 {[%clk 0:02:58]}  Re8 {[%clk 0:02:56]} 11. Ng3 {[%clk 0:02:58]}  Be6 {[%clk 0:02:56]} 12. Bc2 {[%clk 0:02:55]}  d5 {[%clk 0:02:54]} 13. Qe2 {[%clk 0:02:49]}  Qd6 {[%clk 0:02:53]} 14. h3 {[%clk 0:02:48]}  Rad8 {[%clk 0:02:13]} 15. Nh4 {[%clk 0:02:47]}  d4 {[%clk 0:01:59]} 16. Qf3 {[%clk 0:02:34]}  Ne7 {[%clk 0:01:51]} 17. Nhf5 {[%clk 0:02:30]}  Nxf5 {[%clk 0:01:49]} 18. Nxf5 {[%clk 0:02:29]}  Bxf5 {[%clk 0:01:49]} 19. Qxf5 {[%clk 0:02:30]}  Nd7 {[%clk 0:01:24]} 20. c4 {[%clk 0:02:14]}  Re6 {[%clk 0:01:22]} 21. Bd2 {[%clk 0:02:11]}  Rf6 {[%clk 0:01:19]} 22. Qh5 {[%clk 0:02:10]}  c5 {[%clk 0:01:16]} 23. Rab1 {[%clk 0:02:03]}  Nf8 {[%clk 0:00:53]} 24. a3 {[%clk 0:02:00]}  Ne6 {[%clk 0:00:49]} 25. g3 {[%clk 0:01:59]}  b5 {[%clk 0:00:36]} 26. Bb3 {[%clk 0:01:58]}  Rg6 {[%clk 0:00:27]} 27. Ba2 {[%clk 0:01:57]}  Ng5 {[%clk 0:00:25]} 28. h4 {[%clk 0:01:52]}  Nh7 {[%clk 0:00:21]} 29. cxb5 {[%clk 0:01:35]}  axb5 {[%clk 0:00:20]} 30. b4 {[%clk 0:01:36]}  Nf6 {[%clk 0:00:19]} 31. Qxg6 {[%clk 0:01:32]} 1-0


[Site "https://www.chess.com"]

[Event "Titled Tuesday Blitz October 11 Late 2022"]
[White "Riehle, Marco"]
[Black "Fernandez Siles, Luis"]
[WhiteFideId "12904392"]
[BlackFideId "2209420"]
[WhiteElo "2462"]
[BlackElo "2186"]
[Result "1-0"]
[Round "02"]
[TimeControl "180+1"]
[Date "2022.10.12"]
[WhiteClock "0:01:42"]
[BlackClock "0:00:02"]

1. e4 {[%clk 0:03:00]}  c5 {[%clk 0:02:59]} 2. a3 {[%clk 0:02:58]}  g6 {[%clk 0:02:49]} 3. h4 {[%clk 0:02:57]}  h5 {[%clk 0:02:47]} 4. Nc3 {[%clk 0:02:56]}  Bg7 {[%clk 0:02:46]} 5. Bc4 {[%clk 0:02:57]}  Nf6 {[%clk 0:02:39]} 6. d3 {[%clk 0:02:54]}  Nc6 {[%clk 0:02:32]} 7. Bg5 {[%clk 0:02:52]}  d6 {[%clk 0:02:28]} 8. Qd2 {[%clk 0:02:50]}  Nd4 {[%clk 0:02:26]} 9. Nge2 {[%clk 0:02:49]}  a6 {[%clk 0:02:19]} 10. Nxd4 {[%clk 0:02:47]}  cxd4 {[%clk 0:02:17]} 11. Ne2 {[%clk 0:02:47]}  Ng4 {[%clk 0:02:10]} 12. Nf4 {[%clk 0:02:40]}  f6 {[%clk 0:01:55]} 13. Nxg6 {[%clk 0:02:38]}  fxg5 {[%clk 0:01:52]} 14. Nxh8 {[%clk 0:02:38]}  Bxh8 {[%clk 0:01:53]} 15. hxg5 {[%clk 0:02:35]}  Kd7 {[%clk 0:01:18]} 16. Rxh5 {[%clk 0:02:31]}  Kc7 {[%clk 0:01:17]} 17. O-O-O {[%clk 0:02:26]}  Bg7 {[%clk 0:01:14]} 18. Rh7 {[%clk 0:02:18]}  Qf8 {[%clk 0:01:13]} 19. Bd5 {[%clk 0:02:11]}  Bd7 {[%clk 0:00:59]} 20. Qa5+ {[%clk 0:02:05]}  b6 {[%clk 0:00:49]} 21. Qb4 {[%clk 0:02:03]}  Ra7 {[%clk 0:00:30]} 22. f3 {[%clk 0:01:46]}  Ne3 {[%clk 0:00:26]} 23. Rdh1 {[%clk 0:01:46]}  Nxd5 {[%clk 0:00:23]} 24. exd5 {[%clk 0:01:47]}  Qf4+ {[%clk 0:00:23]} 25. Qd2 {[%clk 0:01:44]}  Qxd2+ {[%clk 0:00:16]} 26. Kxd2 {[%clk 0:01:44]}  Be5 {[%clk 0:00:15]} 27. R1h4 {[%clk 0:01:44]}  Ra8 {[%clk 0:00:03]} 28. f4 {[%clk 0:01:44]}  Rf8 {[%clk 0:00:04]} 29. fxe5 {[%clk 0:01:43]}  Rf2+ {[%clk 0:00:02]} 30. Ke1 {[%clk 0:01:43]}  Rxc2 {[%clk 0:00:02]} 31. e6 {[%clk 0:01:43]}  Bb5 {[%clk 0:00:02]} 32. Rxe7+ {[%clk 0:01:42]}  Kd8 {[%clk 0:00:03]} 33. Rg7 {[%clk 0:01:41]}  Rxb2 {[%clk 0:00:01]} 34. Rh8+ {[%clk 0:01:41]}  Be8 {[%clk 0:00:02]} 35. Rd7+ {[%clk 0:01:42]} 1-0


[Site "https://www.chess.com"]